bitfinex-derivatives/quotes_ETHF0:USTF0_20250505
["timestamp","ask_amount","ask_price","bid_price","bid_amount"]
[1746410795131,9.751,1786.9,1786.8,40.8]
[1746410796626,3.732,1786.9,1786.8,45.8]
[1746410796831,3.732,1786.9,1786.8,48.66616]
[1746410797233,3.732,1786.9,1786.8,40.8]
[1746410797234,4.327,1786.9,1786.8,40.8]
[1746410797634,7.5348,1786.9,1786.8,40.8]
[1746410798026,1.11938,1786.6,1786.5,3.2078]
[1746410798233,1.11963,1786.2,1786.1,5.9581]
[1746410798433,3.2078,1786.2,1786.1,45.3801]
[1746410798833,4.9506,1786.2,1786.1,45.3801]
[1746410799241,5.824,1786.6,1786.3,1.11954]
[1746410799432,3.2078,1786.6,1786.3,3.2078]
[1746410799632,4.32718,1786.6,1786.4,1.6565]
[1746410799938,1.7428,1786.5,1786.4,1.6565]
[1746410800134,1.7428,1786.5,1786.3,3.2078]
[1746410800332,4.32735,1786.4,1786.2,7.095]
[1746410800530,1.7428,1786.3,1786.2,7.095]
[1746410800736,1.11936,1786.7,1786.3,1.11954]
[1746410801031,4.32712,1786.7,1786.5,3.2078]
[1746410801232,3.2078,1786.7,1786.4,1.6565]
[1746410801536,1.7428,1786.6,1786.4,2.776]
[1746410801732,1.7428,1786.6,1786.4,1.6565]
[1746410802132,1.7428,1786.6,1786.5,1.2569]
[1746410802438,1.7428,1786.6,1786.5,4.4647]
[1746410802732,1.11917,1787.0,1786.7,1.1193]
[1746410803039,1.1192,1786.9,1786.8,2.8446]
[1746410803236,3.2078,1786.8,1786.6,1.5897]
[1746410803435,1.11938,1786.6,1786.5,8.6387]
[1746410803641,4.32718,1786.6,1786.5,4.4647]
[1746410803939,2.72308,1786.6,1786.5,1.2569]
[1746410804139,2.72308,1786.6,1786.5,2.8466]
[1746410804140,1.6037,1786.6,1786.5,2.8466]
[1746410804339,2.72308,1786.6,1786.5,2.8466]
[1746410805140,1.6037,1786.6,1786.5,2.8466]
[1746410805539,1.6037,1786.6,1786.5,6.0544]
[1746410805740,2.72308,1786.6,1786.5,6.0544]
[1746410805933,1.6037,1786.6,1786.5,6.0544]
[1746410806329,2.72308,1786.6,1786.5,6.0544]
[1746410806540,1.6037,1786.6,1786.5,6.0544]
[1746410806740,5.5265,1787.0,1786.5,6.0544]
[1746410806941,3.2078,1786.8,1786.5,7.17381]
[1746410807140,3.2078,1786.8,1786.7,3.2078]
[1746410807342,1.6309,1786.8,1786.7,3.2078]
[1746410808741,1.6309,1786.8,1786.7,4.8391]
[1746410809850,3.2078,1787.2,1786.8,1.11926]
[1746410810048,1.11871,1787.7,1787.1,3.2078]
[1746410810250,1.6143,1787.5,1787.3,4.32674]
[1746410810551,2.73312,1787.5,1787.4,40.8]
[1746410810743,4.8221,1787.5,1787.4,40.8]
[1746410810949,5.94092,1787.5,1787.4,40.8]
[1746410811351,4.8221,1787.5,1787.4,40.8]
[1746410812553,10.94092,1787.5,1787.4,40.8]
[1746410813149,14.67292,1787.5,1787.4,40.8]
[1746410813452,11.7619,1787.5,1787.0,4.458]
[1746410813652,3.2078,1787.3,1787.1,1.6751]
[1746410813846,3.2078,1787.3,1787.2,40.8]
[1746410814047,6.46516,1787.5,1787.2,44.0078]
[1746410814247,3.2078,1787.3,1787.2,45.6563]
[1746410814755,1.6143,1787.5,1787.2,42.4485]
[1746410814756,1.11894,1787.4,1787.2,42.4485]
[1746410815046,5.95145,1787.3,1787.2,42.4485]
[1746410815448,2.74365,1787.3,1787.2,42.4485]
[1746410815649,2.74365,1787.3,1787.2,40.8]
[1746410816357,5.95145,1787.3,1787.2,40.8]
[1746410816549,1.6247,1787.3,1787.2,44.0078]
[1746410817040,2.74365,1787.3,1787.2,44.0078]
[1746410817246,1.6247,1787.3,1787.2,44.0078]
[1746410817555,3.2078,1787.7,1787.2,44.0078]
[1746410817757,1.11888,1787.5,1787.3,1.6596]
[1746410818047,1.6575,1787.4,1787.3,1.6596]
[1746410818254,1.11886,1787.5,1787.3,1.6596]
[1746410818454,1.6575,1787.6,1787.3,1.6596]
[1746410818649,1.11888,1787.5,1787.3,1.6596]
[1746410818845,1.6575,1787.4,1787.3,1.6596]
[1746410819051,2.77638,1787.4,1787.3,1.6596]
[1746410819450,3.2078,1787.7,1787.3,1.6596]
[1746410819651,1.11884,1787.5,1787.4,1.3426]
[1746410819847,1.11884,1787.5,1787.4,2.6238]
[1746410820044,1.11895,1787.3,1787.2,40.8]
[1746410820249,4.32675,1787.3,1787.2,40.8]
[1746410820451,1.11895,1787.3,1787.2,40.8]
[1746410821257,4.32675,1787.3,1787.2,40.8]
[1746410822053,1.1192,1786.9,1786.8,1.2552]
[1746410822251,4.327,1786.9,1786.8,1.2552]
[1746410822452,1.11932,1786.7,1786.6,3.2078]
[1746410822652,4.32712,1786.7,1786.6,44.0078]
[1746410824747,1.11917,1787.0,1786.6,54.30017]
[1746410824953,1.7035,1787.0,1786.8,3.2078]
[1746410825257,1.7035,1787.0,1786.9,1.2765]
[1746410825456,1.11899,1787.3,1786.9,4.05988]
[1746410825655,4.32681,1787.2,1787.0,3.2078]
[1746410825959,1.7035,1787.3,1787.1,43.58325]
[1746410826154,1.11885,1787.5,1787.2,6.03661]
[1746410826456,4.32665,1787.5,1787.3,1.3214]
[1746410826761,5.4545177,1787.4,1787.3,1.3214]
[1746410827057,5.4545177,1787.4,1787.3,2.7007]
[1746410827254,5.4545177,1787.4,1787.3,43.5007]
[1746410827758,6.5733977,1787.4,1787.3,43.5007]
[1746410828157,5.4545177,1787.4,1787.3,43.5007]
[1746410828350,6.5733977,1787.4,1787.3,43.5007]
[1746410828552,11.4534977,1787.4,1787.3,40.8]
[1746410829250,15.1854977,1787.4,1787.3,40.8]
[1746410829451,20.1854977,1787.4,1787.3,40.8]
[1746410830162,15.1854977,1787.4,1787.3,40.8]
[1746410830362,9.73098,1787.4,1787.3,40.8]
[1746410830653,5.4043,1787.4,1787.3,40.8]
[1746410830860,5.4043,1787.4,1787.3,44.0078]
[1746410831060,6.52318,1787.4,1787.3,44.0078]
[1746410831256,2.79118,1787.4,1787.3,44.0078]
[1746410831563,5.99898,1787.4,1787.3,40.8]
[1746410832264,8.6121,1787.4,1787.1,3.2078]
[1746410832458,5.4043,1787.4,1787.3,3.2078]
[1746410832961,5.4043,1787.4,1787.3,4.32675]
[1746410833157,1.6723,1787.4,1787.3,45.3789]
[1746410833858,2.79118,1787.4,1787.3,45.3789]
[1746410834764,9.20678,1787.4,1787.3,40.8]
[1746410834960,1.11913,1787.0,1786.9,5.898]
[1746410835167,1.1192,1786.9,1786.8,1.2786]
[1746410835462,6.0471,1786.9,1786.8,1.2786]
[1746410835660,2.8393,1786.9,1786.8,1.2786]
[1746410836165,1.11945,1786.5,1786.4,11.11631284]
[1746410836464,4.32725,1786.5,1786.4,51.91631284]
[1746410836662,3.2078,1786.5,1786.4,51.91631284]
[1746410836862,1.7201,1786.7,1786.4,51.91631284]
[1746410837066,4.32725,1786.5,1786.4,51.91631284]
[1746410839267,4.32725,1786.5,1786.1,22.64988984]
[1746410839268,1.11963,1786.2,1786.1,3.2078]
[1746410839469,3.20009211,1786.2,1786.1,3.2078]
[1746410839663,3.20009211,1786.2,1786.1,44.0078]
[1746410839855,2.84343,1786.2,1786.1,44.0078]
[1746410840261,1.7238,1786.2,1786.1,44.0078]
[1746410840659,6.04352211,1786.2,1786.1,44.0078]
[1746410841066,4.92389211,1786.2,1786.1,44.0078]
[1746410841267,6.04352211,1786.2,1786.1,40.8]
[1746410842161,6.04352211,1786.2,1786.1,39.60763]
[1746410842468,1.12014,1785.4,1785.2,14.63110676]
[1746410842669,4.32023211,1785.4,1785.3,5.00760958]
[1746410842865,7.52803211,1785.4,1785.3,5.00760958]
[1746410843067,4.32023211,1785.4,1784.9,3.2078]
[1746410843367,4.32023211,1785.4,1785.3,40.8]
[1746410844265,7.52803211,1785.4,1785.3,40.8]
[1746410844566,1.12024,1785.3,1784.8,14.63110676]
[1746410844767,4.32033211,1785.3,1784.9,4.8108]
[1746410844961,1.12028,1785.2,1784.9,45.6108]
[1746410845161,4.32031211,1785.3,1784.9,45.6108]
[1746410845466,3.20009211,1785.3,1784.9,46.73124]
[1746410845668,3.20009211,1785.3,1785.0,1.12038]
[1746410845859,3.2078,1785.4,1785.1,2.72332]
[1746410846060,6.40789211,1785.4,1785.2,1.603]
[1746410846260,6.40789211,1785.4,1785.2,2.9626]
[1746410846261,4.32026211,1785.4,1785.2,2.9626]
[1746410846467,4.32785,1785.6,1785.2,2.9626]
[1746410846668,3.20009211,1785.5,1785.2,4.08283]
[1746410846870,3.20009211,1785.5,1785.2,5.37263]
[1746410847068,4.32785,1785.6,1785.2,5.37263]
[1746410847366,1.11986,1785.9,1785.3,3.2078]
[1746410847671,4.32002211,1785.8,1785.4,2.83377]
[1746410847869,4.31995211,1785.9,1785.6,1.12]
[1746410848071,3.20009211,1785.9,1785.7,4.18814]
[1746410848265,1.11984,1785.9,1785.7,3.0682]
[1746410848464,4.74785785,1786.0,1785.7,4.18813]
[1746410848668,3.62804785,1786.0,1785.8,4.32766]
[1746410848866,4.74780785,1786.0,1785.9,1.7137]
[1746410849065,3.62804785,1786.0,1785.8,4.5784]
[1746410849364,5.99977211,1785.9,1785.3,4.174]
[1746410849568,4.32787,1785.5,1785.4,40.8]
[1746410849771,4.32016211,1785.5,1785.4,40.8]
[1746410849970,7.52796211,1785.5,1785.4,40.8]
[1746410850171,11.25996211,1785.5,1785.4,40.8]
[1746410850368,11.25996211,1785.5,1784.3,3.2078]
[1746410850369,2.80117,1784.9,1784.3,3.2078]
[1746410850570,3.20009211,1784.6,1784.3,3.2078]
[1746410850765,7.52851211,1784.7,1784.4,43.6375]
[1746410850964,4.32839,1784.7,1784.4,43.6375]
[1746410851158,4.32842,1784.7,1784.4,47.8115]
[1746410851363,1.12054,1784.8,1784.4,47.8115]
[1746410851562,1.5778,1784.6,1784.4,47.8115]
[1746410851771,4.77789211,1784.6,1784.4,43.6375]
[1746410851971,4.77789211,1784.6,1784.4,47.8125]
[1746410852170,1.5778,1784.6,1784.4,47.8125]
[1746410852367,1.5778,1784.6,1784.5,1.1207]
[1746410852573,4.32804,1785.3,1784.8,1.12051]
[1746410852869,5.4472,1785.5,1784.7,4.175]
[1746410852870,3.20009211,1785.0,1784.7,4.175]
[1746410853066,3.20009211,1785.0,1784.9,40.8]
[1746410853266,4.32808,1785.2,1784.9,40.8]
[1746410853462,3.20009211,1785.1,1784.9,40.8]
[1746410853664,4.32042211,1785.1,1784.9,42.5435]
[1746410853864,3.20009211,1785.1,1784.9,40.8]
[1746410854064,3.2078,1785.2,1784.9,40.8]
[1746410854264,3.20009211,1785.2,1784.9,42.5435]
[1746410854469,5.6001,1785.5,1784.9,42.5435]
[1746410854674,3.20009211,1785.4,1785.2,1.12026]
[1746410854872,3.20009211,1785.4,1785.1,7.03878]
[1746410855076,3.20009211,1785.2,1785.1,5.29528]
[1746410855469,3.2078,1785.3,1785.1,5.29528]
[1746410855670,3.2078,1785.3,1785.1,5.29532]
[1746410856068,3.2078,1785.3,1785.1,4.175]
[1746410856265,4.32801,1785.3,1785.1,4.175]
[1746410856469,3.20009211,1785.2,1785.1,4.175]
[1746410856663,6.40789211,1785.3,1785.1,4.175]
[1746410857071,6.40789211,1785.3,1785.1,5.8897]
[1746410857277,3.20009211,1785.3,1785.1,5.8897]
[1746410857473,1.2722,1785.5,1785.1,5.8897]
[1746410857681,3.20009211,1785.3,1785.2,2.83491]
[1746410857870,1.12009,1785.5,1785.2,2.83496]
[1746410858067,3.20009211,1785.4,1785.3,1.1202]
[1746410858271,3.20009211,1785.4,1785.2,2.83492]
[1746410858571,3.20009211,1785.4,1785.3,1.1202]
[1746410859176,3.20009211,1785.4,1785.3,2.4001]
[1746410859377,4.32783,1785.6,1785.4,1.12012]
[1746410859578,6.40789211,1785.6,1785.3,1.2799]
[1746410859776,1.11997,1785.7,1785.4,1.1201]
[1746410859974,3.20009211,1785.6,1785.5,1.12007]
[1746410860181,7.52779211,1785.8,1785.6,1.11998]
[1746410860477,3.20009211,1785.4,1785.0,3.2078]
[1746410860682,3.20009211,1785.4,1785.0,5.8584]
[1746410860973,4.32786,1785.6,1785.3,1.12016]
[1746410861278,3.20009211,1785.5,1785.3,1.12016]
[1746410861478,4.32017211,1785.5,1785.3,1.12016]
[1746410861678,1.7176,1785.4,1785.3,1.12016]
[1746410862582,1.7176,1785.6,1785.5,1.12007]
[1746410862780,4.91769211,1785.6,1785.5,1.12007]
[1746410862973,1.7176,1785.6,1785.5,1.12007]
[1746410863173,1.7176,1785.6,1785.5,4.13487]
[1746410863877,1.7176,1785.6,1785.2,3.2078]
[1746410864085,2.80125,1784.9,1783.9,11.682]
[1746410864271,6.40789211,1784.5,1784.0,1.12096]
[1746410864473,3.20009211,1784.3,1784.1,42.5175]
[1746410864672,2.76039,1784.4,1784.1,43.63845]
[1746410864673,5.96051211,1784.4,1784.1,43.63845]
[1746410864884,5.96051211,1784.4,1784.2,1.7175]
[1746410865084,5.96046211,1784.4,1784.2,1.7175]
[1746410865291,3.20009211,1784.4,1784.3,1.12083]
[1746410865582,3.2078,1784.5,1784.3,1.12078]
[1746410865783,6.40789211,1784.5,1784.4,1.7209]
[1746410865978,7.99709211,1784.5,1784.4,1.7209]
[1746410866684,7.99709211,1784.5,1784.4,2.84166]
[1746410867082,4.78929211,1784.5,1784.1,45.021]
[1746410867283,4.78929211,1784.5,1784.3,1.1208]
[1746410867681,4.78929211,1784.5,1784.4,1.12076]
[1746410867883,4.78929211,1784.5,1784.2,1.7209]
[1746410868182,5.62979211,1784.5,1784.2,1.7209]
[1746410868376,3.30532161,1785.5,1784.6,2.80157]
[1746410868576,2.90355273,1785.3,1785.2,1.12023]
[1746410868777,2.90355273,1785.3,1785.2,4.461]
[1746410869381,2.90355273,1785.3,1785.2,5.58126]
[1746410869584,4.56345273,1785.3,1785.2,5.58126]
[1746410869986,2.50040062,1785.3,1785.2,46.38126]
[1746410870388,1.6599,1785.3,1785.2,46.38126]
[1746410870889,1.6599,1785.3,1785.2,45.261]
[1746410871086,1.6599,1785.3,1785.2,46.38126]
[1746410871676,0.264,1785.4,1785.2,46.38126]
[1746410871880,0.264,1785.4,1785.3,2.7246]
[1746410872081,0.264,1785.4,1785.3,4.0363]
[1746410872487,0.264,1785.4,1785.3,12.2441]
[1746410873380,3.2078,1785.7,1785.6,1.12001]
[1746410873581,3.2078,1785.7,1785.6,5.58101]
[1746410874281,1.3523,1786.1,1785.9,1.11982]
[1746410874483,4.48855273,1786.0,1785.9,1.11982]
[1746410874880,1.585,1786.0,1785.9,1.11982]
[1746410875080,3.2078,1786.4,1786.2,1.1196]
[1746410875281,3.2078,1786.4,1785.8,2.79968]
[1746410875282,0.84050062,1786.1,1786.0,5.58076]
[1746410875487,4.04830062,1786.1,1786.0,5.58076]
[1746410875682,7.72955273,1786.1,1786.0,46.38076]
[1746410876281,7.72955273,1786.1,1786.0,41.91976]
[1746410876586,7.72955273,1786.1,1786.0,46.37976]
[1746410876979,2.90355273,1785.6,1784.1,2.80229]
[1746410877179,14.286,1786.1,1783.8,5.898]
[1746410877180,4.04830062,1785.0,1784.8,1.12049]
[1746410877380,1.6182,1784.9,1784.8,1.12049]
[1746410877984,4.826,1784.9,1784.8,41.92049]
[1746410878184,3.2078,1785.2,1784.8,46.38049]
[1746410878488,2.90355273,1785.3,1785.2,1.12026]
[1746410878689,5.67232,1785.5,1785.2,1.12026]
[1746410878889,2.90355273,1785.3,1785.2,1.12026]
[1746410879385,3.2078,1785.3,1784.9,7.3826]
[1746410879593,4.04830062,1785.0,1784.9,7.3826]
[1746410879784,2.90355273,1785.2,1785.1,1.12032]
[1746410879984,2.90355273,1785.2,1784.9,7.3826]
[1746410880185,1.7198,1785.1,1785.0,1.12035]
[1746410880684,1.11976,1786.0,1785.8,1.11989]
[1746410880880,2.90355273,1785.8,1785.7,1.1199]
[1746410881093,2.90355273,1785.8,1785.7,46.3809]
[1746410881392,1.7198,1785.9,1785.8,1.11989]
[1746410881780,3.62804785,1786.2,1786.0,1.11974]
[1746410881991,2.49240062,1786.1,1786.0,1.11974]
[1746410882186,2.49240062,1786.1,1785.9,1.11979]
[1746410882383,2.49240062,1786.1,1786.0,1.11976]
[1746410882792,1.6519,1786.1,1786.0,1.11976]
[1746410883189,1.6519,1786.1,1786.0,2.69506]
[1746410883786,3.62804785,1786.2,1786.1,1.1197]
[1746410883987,6.18714847,1786.2,1786.1,1.1197]
[1746410885592,2.55910062,1786.2,1786.1,1.1197]
[1746410886496,3.2078,1786.6,1786.4,1.11951]
[1746410886795,3.2078,1786.6,1786.4,4.46]
[1746410886796,2.83805,1786.5,1786.4,4.46]
[1746410886992,5.74160273,1786.5,1786.4,4.46]
[1746410887493,5.74160273,1786.5,1786.4,5.57951]
[1746410887494,4.62215273,1786.5,1786.4,5.57951]
[1746410887791,4.62215273,1786.5,1786.4,4.46]
[1746410887990,5.74160273,1786.5,1786.4,4.46]
[1746410888184,4.62215273,1786.5,1786.4,5.57951]
[1746410888391,4.62215273,1786.5,1786.4,4.46]
[1746410888995,5.74160273,1786.5,1786.4,4.46]
[1746410889693,5.74160273,1786.5,1786.2,1.1196]
[1746410889890,2.90355273,1786.3,1786.2,1.1196]
[1746410890090,2.90355273,1786.3,1786.1,4.459]
[1746410890286,2.90355273,1786.3,1786.1,5.57866]
[1746410890287,2.55220062,1786.2,1786.1,5.57866]
[1746410890686,1.7117,1786.2,1786.1,5.57866]
[1746410892095,7.82305273,1786.2,1785.7,44.0078]
[1746410892293,0.84050062,1785.8,1785.7,44.0078]
[1746410892485,0.84050062,1785.8,1785.7,49.58675]
[1746410892689,1.2669,1786.1,1786.0,1.11976]
[1746410892891,1.3352,1786.3,1786.1,1.1197]
[1746410893093,2.06305211,1786.2,1786.1,5.5787]
[1746410893293,0.84050062,1786.2,1786.1,5.5787]
[1746410893494,3.2078,1786.4,1786.3,1.11957]
[1746410893700,5.27085211,1786.4,1786.3,1.11957]
[1746410893892,2.79894,1786.3,1785.8,4.459]
[1746410894092,4.02337273,1785.9,1785.8,4.459]
[1746410894595,2.90355273,1785.9,1785.8,5.57889]
[1746410894784,0.84050062,1785.9,1785.8,5.57889]
[1746410895390,0.84050062,1785.9,1785.7,40.8]
[1746410895391,1.11989,1785.8,1785.7,40.8]
[1746410895589,1.1202,1785.3,1785.2,4.459]
[1746410895900,2.90355273,1785.3,1785.2,4.459]
[1746410896104,0.84050062,1785.3,1785.2,45.259]
[1746410896299,2.56530062,1785.3,1785.2,46.37926]
[1746410896600,1.7248,1785.3,1785.2,46.37926]
[1746410897895,1.7248,1785.3,1785.2,48.07566]
[1746410898396,1.7248,1785.3,1785.2,49.32596]
[1746410898603,1.2515,1785.7,1785.2,48.2057]
[1746410898801,1.2515,1785.7,1785.4,1.12014]
[1746410898802,0.84050062,1785.5,1785.4,1.12014]
[1746410899191,3.2078,1786.0,1785.4,5.0]
[1746410899398,1.6779,1785.7,1785.6,1.12001]
[1746410899591,4.58145273,1785.7,1785.6,5.61801]
[1746410899796,2.51840062,1785.7,1785.6,5.61801]
[1746410899996,4.58145273,1785.7,1785.6,5.61801]
[1746410900908,1.12001,1785.6,1785.5,4.499]
[1746410901201,6.84621062,1785.6,1785.5,4.499]
[1746410901405,8.90926273,1785.6,1785.5,4.499]
[1746410901603,4.58145273,1785.6,1785.5,4.499]
[1746410901796,4.58145273,1785.6,1785.5,5.61907]
[1746410901999,2.51840062,1785.6,1785.5,5.61907]
[1746410903003,5.70146273,1785.6,1785.5,4.499]
[1746410903615,1.6779,1785.6,1785.5,5.61907]
[1746410903906,4.58145273,1785.6,1785.5,5.61907]
[1746410904498,4.58145273,1785.6,1785.5,4.499]
[1746410904700,4.58145273,1785.6,1785.5,5.61907]
[1746410905194,2.51840062,1785.6,1785.5,5.61907]
[1746410905603,3.2078,1785.8,1785.7,1.11995]
[1746410905806,0.84050062,1785.7,1785.6,1.12001]
[1746410906004,2.56720062,1785.7,1785.6,1.12001]
[1746410906205,1.7267,1785.7,1785.6,1.12001]
[1746410908712,2.56720062,1785.7,1785.6,1.12001]
[1746410909114,1.7267,1785.7,1785.6,2.71841]
[1746410909613,1.11961,1786.3,1786.1,1.11967]
[1746410909814,0.84050062,1786.2,1786.1,5.61867]
[1746410910006,2.90355273,1786.2,1786.1,5.61867]
[1746410910204,2.90355273,1786.2,1786.1,46.41867]
[1746410910810,0.84050062,1786.2,1786.1,46.41867]
[1746410911009,2.6327,1786.4,1786.3,1.11957]
[1746410911218,1.2916,1786.4,1786.3,1.11957]
[1746410911418,4.19515273,1786.4,1786.1,47.0136]
[1746410911718,2.90355273,1786.3,1786.2,1.11963]
[1746410912115,4.02314273,1786.3,1786.1,46.41866]
[1746410912312,2.06305211,1786.3,1786.2,1.11963]
[1746410912917,0.84050062,1786.2,1786.1,45.299]
[1746410913112,4.02318273,1786.2,1786.1,45.299]
[1746410913324,7.23098273,1786.2,1786.1,45.299]
[1746410915018,4.02318273,1786.2,1786.1,45.299]
[1746410916028,12.23098273,1786.2,1786.1,40.8]
[1746410916530,1.11981,1786.0,1785.8,4.498]
[1746410916729,2.90355273,1785.9,1785.8,4.498]
[1746410917023,2.90355273,1785.9,1785.8,45.298]
[1746410917220,2.90355273,1785.9,1785.8,46.41789]
[1746410918624,3.2078,1786.0,1785.9,1.11982]
[1746410918830,1.2916,1786.4,1786.0,1.11971]
[1746410918831,1.11964,1786.2,1786.0,1.11971]
[1746410919129,2.90355273,1786.0,1785.8,45.298]
[1746410919329,2.90355273,1785.9,1785.8,41.91989]
[1746410919631,7.23117273,1785.9,1785.8,45.298]
[1746410919834,2.90355273,1785.9,1785.8,46.41789]
[1746410920130,4.02337273,1785.9,1785.8,45.298]
[1746410920431,7.23117273,1785.9,1785.8,45.298]
[1746410921328,1.12012,1785.5,1785.1,5.898]
[1746410921529,0.84050062,1785.4,1785.3,4.32797]
[1746410921830,2.42400062,1785.4,1785.2,5.61822]
[1746410922036,4.02375273,1785.3,1785.2,4.498]
[1746410922227,4.48705273,1785.3,1785.2,5.61826]
[1746410922428,1.5835,1785.3,1785.2,46.41826]
[1746410922622,1.5835,1785.3,1785.2,48.14146]
[1746410925037,1.5835,1785.3,1785.2,46.41826]
[1746410925237,4.48705273,1785.3,1785.2,45.298]
[1746410925435,5.60725273,1785.3,1785.2,45.298]
[1746410925634,4.48705273,1785.3,1785.2,46.41826]
[1746410926233,5.60725273,1785.3,1785.2,45.298]
[1746410926432,14.84201273,1785.3,1784.7,4.3012]
[1746410926639,2.90355273,1784.8,1784.7,1.268]
[1746410926839,2.90355273,1784.8,1784.7,2.38858]
[1746410927041,1.6036,1784.9,1784.8,1.12051]
[1746410927342,0.84050062,1785.0,1784.9,1.12045]
[1746410927641,2.44410062,1785.1,1785.0,1.12039]
[1746410928141,2.44410062,1785.1,1784.8,1.12046]
[1746410928340,2.90355273,1784.8,1784.7,46.567]
[1746410928531,4.02406273,1784.8,1784.7,46.567]
[1746410928734,4.02406273,1784.8,1784.7,45.299]
[1746410929135,2.90355273,1784.8,1784.7,45.299]
[1746410929544,5.64946273,1784.8,1784.7,45.299]
[1746410930042,8.85726273,1784.8,1784.7,45.299]
[1746410930646,8.85726273,1784.8,1784.7,40.8]
[1746410931144,13.85726273,1784.8,1784.7,40.8]
[1746410931539,8.85726273,1784.8,1784.7,40.8]
[1746410931738,7.73675273,1784.8,1784.7,40.8]
[1746410932438,7.73675273,1784.8,1784.2,10.62930717]
[1746410932439,1.12083,1784.3,1784.2,7.42150717]
[1746410932643,6.39168211,1784.3,1784.2,7.42150717]
[1746410932841,7.23218273,1784.3,1784.2,7.42150717]
[1746410933040,7.23218273,1784.3,1784.2,48.22150717]
[1746410933336,12.23218273,1784.3,1784.2,48.22150717]
[1746410933542,7.23218273,1784.3,1784.2,48.22150717]
[1746410933935,12.23218273,1784.3,1784.2,48.22150717]
[1746410934137,7.23218273,1784.3,1784.2,48.22150717]
[1746410934335,15.06728273,1784.3,1784.2,48.22150717]
[1746410934537,10.06728273,1784.3,1784.2,48.22150717]
[1746410934733,15.06728273,1784.3,1784.2,48.22150717]
[1746410935143,18.79928273,1784.3,1784.2,48.22150717]
[1746410935442,13.79928273,1784.3,1784.2,48.22150717]
[1746410935636,12.67845273,1784.3,1784.2,48.22150717]
[1746410935834,13.79928273,1784.3,1784.2,48.22150717]
[1746410936036,12.67845273,1784.3,1784.2,48.22150717]
[1746410936236,8.94645273,1784.3,1784.2,48.22150717]
[1746410936433,7.69355273,1784.3,1784.2,48.22150717]
[1746410936745,13.81438273,1784.3,1784.2,47.01177717]
[1746410936940,12.97388211,1784.3,1784.2,5.37127655]
[1746410937150,7.97388211,1784.3,1784.2,5.37127655]
[1746410937341,7.97388211,1784.3,1784.2,46.17127655]
[1746410937941,12.97388211,1784.3,1784.2,5.37127655]
[1746410938140,11.70588211,1784.3,1784.2,4.20202655]
[1746410938347,17.891,1784.3,1783.5,25.80415117]
[1746410938641,4.329,1783.7,1783.5,66.60415117]
[1746410938836,4.32894,1783.9,1783.5,66.60415117]
[1746410939037,1.12113,1783.9,1783.6,33.21486368]
[1746410939239,3.2078,1784.1,1783.8,22.419]
[1746410939544,2.53,1784.2,1783.6,1.6924]
[1746410939545,3.65093,1784.2,1784.0,11.2095]
[1746410939847,1.2982,1784.2,1784.1,22.419]
[1746410940143,1.2982,1784.2,1783.6,4.37]
[1746410940345,3.2078,1784.1,1783.9,1.12108]
[1746410940545,3.2078,1784.3,1784.1,22.419]
[1746410940745,4.32863,1784.3,1784.2,22.419]
[1746410940941,6.9398,1784.5,1784.2,22.419]
[1746410941145,1.1208,1784.4,1784.0,2.9285]
[1746410941349,3.2078,1784.1,1783.9,1.2204]
[1746410941547,2.806,1784.3,1784.2,22.419]
[1746410941746,1.5863,1784.3,1784.0,2.9404]
[1746410941941,1.12077,1784.4,1784.2,22.419]
[1746410942150,1.12081,1784.4,1784.2,22.419]
[1746410942347,4.4885,1784.6,1784.3,22.419]
[1746410942646,5.60916,1784.6,1784.5,9.6233]
[1746410942846,3.2078,1784.8,1784.5,20.8328]
[1746410943046,1.12043,1785.0,1784.8,20.8328]
[1746410943346,4.32817,1785.1,1784.9,20.8328]
[1746410943546,1.12041,1785.0,1784.9,9.6233]
[1746410943746,1.12039,1785.0,1784.9,20.8328]
[1746410943947,1.12049,1784.9,1784.7,1.7059]
[1746410944143,5.4545177,1784.9,1784.8,20.8328]
[1746410944345,6.5749677,1784.9,1784.8,20.8328]
[1746410944539,1.12051,1784.8,1784.7,1.7059]
[1746410944745,8.6623177,1784.9,1784.7,12.9154]
[1746410945059,1.12057,1784.8,1784.6,40.8]
[1746410945245,1.12057,1784.8,1784.7,9.6233]
[1746410945550,1.12053,1784.8,1784.6,50.4233]
[1746410945752,1.12053,1784.8,1784.7,20.8328]
[1746410946347,1.12058,1784.7,1784.6,40.8]
[1746410946550,4.32838,1784.7,1784.6,40.8]
[1746410946747,1.12085,1784.3,1784.1,3.2078]
[1746410947056,1.12087,1784.3,1784.0,9.6233]
[1746410947245,3.732,1784.3,1784.2,20.8328]
[1746410947450,5.69343,1784.3,1784.1,20.8328]
[1746410947757,4.5726,1784.3,1784.2,61.6328]
[1746410948047,5.69343,1784.3,1784.2,40.8]
[1746410948253,1.96143,1784.3,1784.2,40.8]
[1746410948453,8.26153,1784.3,1784.2,40.8]
[1746410948644,1.12114,1783.8,1783.7,4.37]
[1746410949042,1.12114,1783.8,1783.7,66.0028]
[1746410949242,4.32894,1783.8,1783.7,40.8]
[1746410949749,1.12112,1783.9,1783.7,61.6328]
[1746410950252,2.35435,1784.0,1783.8,20.8328]
[1746410950548,1.12105,1784.0,1783.9,20.8328]
[1746410951049,3.2078,1784.2,1783.9,20.8328]
[1746410951255,1.12099,1784.1,1783.9,20.8328]
[1746410951448,3.2078,1784.2,1784.0,20.8328]
[1746410951750,3.2078,1784.2,1784.1,20.8328]
[1746410951945,0.8406,1784.3,1784.2,1.12089]
[1746410952141,0.8406,1784.3,1784.2,32.46869]